Cogmind - Beta 13 @@@ ROGUE MODE // 2024.04.28 @ 21:55:39 Player: Rubbe Result: Destroyed by G-47 Trooper with Particle Gun Performance ------------- Evolutions (2) 1000 Regions Visited (3) 600 Robots Destroyed (34) 170 Value Destroyed (1001) 1001 Prototype IDs (1) 20 Alien Tech Used (0) 0 Bonus (0) 0 TOTAL SCORE: 2791 Bonus ------- None Cogmind --------- Core Integrity 0/550 Matter 280/300 Energy 262/325 System Corruption 42% Temperature Cool (21) Movement Walking (190) Ox1 Location -8/Materials Parts ------- > --- POWER (1) -------- Light Ion Engine > --- PROPULSION (3) --- Aluminum Leg > --- UTILITY (4) ------ Improved Heat Sink Compact Battery Improved Targeting Computer > --- WEAPON (3) ------- Particle Gun Particle Gun > --- INVENTORY (5) ---- (None) Peak State ------------ > --- POWER ------------ Deuterium Engine > --- PROPULSION ------- Aluminum Leg Aluminum Leg Aluminum Leg > --- UTILITY ---------- Large Storage Unit Advanced Targeting Computer Medium Armor Plating > --- WEAPON ----------- Heavy Mace Heavy Mace Heavy Mace > --- INVENTORY -------- Improved Ion Engine Deuterium Engine Compact Battery Light Armor Plating Medium Armor Plating Tractor Beam EM Pulse Gun EM Shotgun Medium Laser Assault Rifle Heavy Assault Rifle Assault Cannon EMP Blaster EMP Blaster [Rating: 23] Favorites ----------- Power Improved Ion Engine Engine Improved Ion Engine Propulsion Aluminum Leg Treads Light Treads Leg Aluminum Leg Utility Large Storage Unit Device Terrain Scanner Storage Large Storage Unit Processor Signal Interpreter Protection Medium Armor Plating Weapon Assault Rifle Energy Gun Medium Laser Ballistic Gun Assault Rifle Ballistic Cannon Assault Cannon Launcher EMP Blaster Impact Weapon Heavy Mace Build | -11 -10 -9 -8 ------- Run | Yrd Mat Mat Mat Slots Evolved 4 | . . 2 2 Power . | . . . . Propulsion 1 | . . 1 . Utility 2 | . . 1 1 Weapon 1 | . . . 1 Parts Attached 67 | 3 5 23 36 Power 7 | . 1 3 3 Engine 7 | . 1 3 3 Core . | . . . . Reactor . | . . . . Propulsion 10 | 2 . 5 3 Treads 1 | . . 1 . Leg 9 | 2 . 4 3 Wheel . | . . . . Hover . | . . . . Flight . | . . . . Utility 14 | 1 2 4 7 Device 3 | . . 1 2 Storage 4 | 1 2 . 1 Processor 3 | . . 1 2 Hackware . | . . . . Protection 4 | . . 2 2 Artifact . | . . . . Weapon 36 | . 2 11 23 Energy Gun 18 | . . 10 8 Energy Cannon . | . . . . Ballistic Gun 6 | . 2 . 4 Ballistic Cannon 3 | . . . 3 Launcher 3 | . . 1 2 Special Weapon . | . . . . Impact Weapon 6 | . . . 6 Slashing Weapon . | . . . . Piercing Weapon . | . . . . Special Melee Weapon . | . . . . Unidentified Prototypes 1 | . . . 1 Corrupted Parts 6 | . . 2 4 System Corruption 36 | . . 11 25 Parts Lost 28 | . . 6 22 Power 4 | . . 2 2 Propulsion 6 | . . 2 4 Utility 8 | . . 1 7 Weapon 10 | . . 1 9 Highest Loss Streak 17 | . . 2 17 To Critical Strikes . | . . . . Average Slot Usage (%) 85 | . 93 87 71 Engine 9 | . 11 8 7 Treads 1 | . . 3 . Leg 22 | . 27 22 15 Device 3 | . . 4 5 Storage 15 | . 25 11 8 Processor 4 | . . 8 6 Protection 4 | . . 7 3 Energy Gun 10 | . . 19 10 Ballistic Gun 11 | . 27 1 5 Impact Weapon 1 | . . . 6 Naked Turns . | . . . . Heaviest Build 46 | 5 32 40 46 Greatest Support 30 | 20 20 30 30 Greatest Overweight (x) 12 | . 2 3 12 Average Overweight (x) . | . . 1 . Largest Inventory Capacity 15 | 8 15 15 15 Average Capacity 12 | 7 12 15 9 Most Carried 15 | 7 15 15 15 Average Carried 9 | 4 10 11 6 Final Capacity 15 | 8 15 15 5 Final Carried 15 | 7 15 15 . Class Distribution -------------------- 61% | Mutant 31% | Scavenger-Mutant 5% | Scavenger-Gunner Dominant Class ---------------- Mutant | -10/Materials Scavenger-Mutant | -9/Materials Scavenger-Mutant | -8/Materials Resources | -11 -10 -9 -8 ----------- Run | Yrd Mat Mat Mat Matter Collected 1109 | 218 215 270 406 Remotely . | . . . . Salvage Created 1322 | . 227 646 449 Parts 73 | . 21 32 20 Haulers Intercepted 1 | . . . 1 Recyclers Shooed 1 | . . 1 . Parts Field Recycled . | . . . . Retrieved Matter . | . . . . Parts Self-Destructed . | . . . . Prevented . | . . . . Kills | -11 -10 -9 -8 ------- Run | Yrd Mat Mat Mat Combat Hostiles Destroyed 28 | . 7 13 8 Guns 22 | . 7 12 3 Cannons 1 | . . . 1 AOE 2 | . . . 2 Classes Destroyed 10 | . 3 3 4 Worker 1 | . . . 1 Builder 1 | . . . 1 Hauler 1 | . . . 1 Recycler 1 | . . 1 . Watcher 2 | . 1 1 . Swarmer 6 | . 3 3 . Grunt 16 | . 4 7 5 Brawler 1 | . . . 1 Duelist 1 | . . 1 . Sentry 4 | . . 2 2 Best Kill Streak 5 | . 4 5 5 Combat Bots Only 4 | . 3 4 2 Max Kills in Single Turn 2 | . 2 1 2 Gunslinging . | . . . . Exploded 1 | . . . 1 Melee . | . . . . Uniques/NPCs Destroyed . | . . . . Combat | -11 -10 -9 -8 -------- Run | Yrd Mat Mat Mat Hostile Shots Fired 309 | . 35 81 193 Missed 70 | . 5 15 50 Damage Taken 3706 | . 309 869 2528 Core 744 | . 33 149 562 Absorbed by Shields . | . . . . Regen/Repaired (Parts) 18 | . 18 . . Core Remaining (%) 82 | 100 86 62 . Volleys Fired 113 | . 22 46 45 Largest 3 | . 2 2 3 Hottest 130 | . 40 100 130 Shots Fired 186 | . 44 81 61 Gun 166 | . 44 80 42 Cannon 15 | . . . 15 Launcher 5 | . . 1 4 Special . | . . . . Kinetic 73 | . 44 . 29 Thermal 75 | . . 48 27 Explosive . | . . . . Electromagnetic 38 | . . 33 5 Robot Hit Streak 14 | . 13 11 14 Robot Miss Streak 4 | . 3 4 2 Penetration Max . | . . . . Secondary Targets 1 | . . 1 . Max Gunslinging Chain 1 | . . 1 . Shots Hit Robots 152 | . 31 58 63 Core Hits 61 | . 12 31 18 Critical Kills . | . . . . Critical Parts Destroyed 2 | . . . 2 Critical Strikes 7 | . . 4 3 Burn 5 | . . 4 1 Smash 2 | . . . 2 Melee Attacks 18 | . . . 18 Impact 18 | . . . 18 Slashing . | . . . . Piercing . | . . . . Sneak Attacks . | . . . . Combat Hostiles . | . . . . Follow-up Attacks 4 | . . . 4 Damage Inflicted 2890 | . 394 804 1692 Guns 1648 | . 394 779 475 Cannons 298 | . . . 298 Explosions 438 | . . 25 413 Melee 506 | . . . 506 Ramming . | . . . . Kinetic 811 | . 394 . 417 Thermal 852 | . . 409 443 Explosive . | . . . . Electromagnetic 721 | . . 395 326 Impact 506 | . . . 506 Slashing . | . . . . Piercing . | . . . . Highest Corruption 42 | . . 11 42 Average Corruption 17 | . . 10 26 Corruption Purged . | . . . . Corruption Blocked . | . . . . Effects 36 | . . 18 18 Message Errors 4 | . . 2 2 Matter Fused 9 | . . 6 3 Heat Flow Errors 5 | . . 3 2 Energy Discharges 2 | . . 1 1 Parts Rejected 3 | . . . 3 Data Loss (minor) 7 | . . 3 4 Data Loss (major) 1 | . . 1 . Misfires 1 | . . 1 . Alerts 1 | . . . 1 Misdirections 1 | . . . 1 Weapon Failures 2 | . . 1 1 Overload Shots . | . . . . Overflow Damage 144 | . . . 144 Projectiles . | . . . . Explosions . | . . . . Melee 144 | . . . 144 Knockbacks 2 | . . . 2 Impact 1 | . . . 1 Kinetic 1 | . . . 1 Secondary . | . . . . Self-Inflicted Damage 82 | . . 6 76 Shots 6 | . . 1 5 Rammed . | . . . . Targets Rammed . | . . . . Kicked . | . . . . Crushed . | . . . . Highest Temperature 546 | . 3 546 303 Average Temperature 109 | . 3 146 50 Received Heat Transfer 1605 | . 132 312 1161 Effects 10 | . . 10 . Shutdowns 2 | . . 2 . Interference 2 | . . 2 . Matter Decay 1 | . . 1 . Short Circuit 1 | . . 1 . Damage (minor) 1 | . . 1 . Damage (major) 3 | . . 3 . Siege Activations . | . . . . Robots Corrupted . | . . . . Combat Hostiles . | . . . . Parts Fried 2 | . . 1 1 Impact Corruptions 5 | . . . 5 Robots Melted 1 | . . 1 . Combat Hostiles 1 | . . 1 . Parts Melted 5 | . . 5 . Heat Transferred 2592 | . . 1517 1075 Parts Sabotaged . | . . . . Parts Stolen . | . . . . Parts Stripped . | . . . . Power Chain Reactions 1 | . . . 1 Alert | -11 -10 -9 -8 ------- Run | Yrd Mat Mat Mat Peak Influence 312 | . 148 312 308 Initial 87 | . . 62 87 Average 126 | . 64 158 173 Maximum Alert Level 1 | . . 1 1 Low Security (%) 80 | 100 100 67 72 Level 1 19 | . . 32 27 Level 2 . | . . . . Level 3 . | . . . . Level 4 . | . . . . Level 5 . | . . . . High Security . | . . . . Max Security . | . . . . Squads Dispatched 9 | . 3 2 4 Investigation 4 | . 2 1 1 Extermination . | . . . . Reinforcement 5 | . 1 1 3 Assault . | . . . . Garrison . | . . . . Intercept . | . . . . Searches Triggered . | . . . . Construction Impeded 2 | . . 1 1 Haulers Reinforced . | . . . . Active Scanning Responses . | . . . . Cargo Convoy Interrupts . | . . . . Stealth | -11 -10 -9 -8 --------- Run | Yrd Mat Mat Mat Distress Signals 4 | . 1 1 2 Communications Jammed . | . . . . Distress Signals . | . . . . Times Spotted 54 | . 11 18 25 Peak Tracking Total 7 | . 4 4 7 Tactical Retreats 9 | . . 2 7 Traps | -11 -10 -9 -8 ------- Run | Yrd Mat Mat Mat Traps Triggered 1 | . . 1 . Indirectly . | . . . . Trap Hack Attempts . | . . . . Triggered . | . . . . Disarmed . | . . . . Reprogrammed . | . . . . Reused . | . . . . Traps Extracted . | . . . . Installed . | . . . . Triggered . | . . . . Machines | -11 -10 -9 -8 ---------- Run | Yrd Mat Mat Mat Machines Disabled 1 | . . . 1 Max in Single Turn 1 | . . . 1 Machines Repaired . | . . . . Machines Dismantled . | . . . . Machines Sabotaged . | . . . . Overloaded Fab Kills . | . . . . Hacking | -11 -10 -9 -8 --------- Run | Yrd Mat Mat Mat Machines Accessed 5 | . 3 1 1 Terminals 2 | . 1 . 1 Fabricators . | . . . . Repair Stations 1 | . 1 . . Recycling Units 2 | . 1 1 . Scanalyzers . | . . . . Garrison Access . | . . . . Total Hacks 15 | . 10 1 4 Successful 12 | . 8 1 3 Failed 3 | . 2 . 1 Catastrophic 1 | . . . 1 Database Lockouts . | . . . . Manual . | . . . . Terminals 8 | . 4 . 4 Fabricators . | . . . . Repair Stations 4 | . 4 . . Recycling Units 3 | . 2 1 . Scanalyzers . | . . . . Garrison Access . | . . . . Terminal Hacks 6 | . 3 . 3 Emergency Access Points 1 | . . . 1 Alert Level 1 | . . . 1 Maintenance Status 1 | . . . 1 Investigation Status 1 | . 1 . . Hauler Manifests 1 | . 1 . . Zone Layout 1 | . 1 . . Fabricator Hacks . | . . . . Repair Station Hacks 3 | . 3 . . Scan Component 1 | . 1 . . Repair 1 | . 1 . . Refit 1 | . 1 . . Recycling Unit Hacks 3 | . 2 1 . Report Inventory 1 | . 1 . . Retrieve Components 2 | . 1 1 . Scanalyzer . | . . . . Garrison Access Hacks . | . . . . Unauthorized Hacks . | . . . . Terminals . | . . . . Fabricators . | . . . . Repair Stations . | . . . . Recycling Units . | . . . . Scanalyzers . | . . . . Garrison Access . | . . . . Data Cores Recovered . | . . . . Used . | . . . . Hacking Detections 5 | . 3 1 1 Full Trace Events 3 | . 2 . 1 Feedback Events . | . . . . Feedback Blocked . | . . . . Robot Schematics Acquired . | . . . . Robots Built . | . . . . Authchips . | . . . . Time . | . . . . Total Robot Build Rating . | . . . . Part Schematics Acquired . | . . . . Parts Built . | . . . . Authchips . | . . . . Time . | . . . . Total Part Build Rating . | . . . . Parts Repaired 1 | . 1 . . Time 26 | . 26 . . Parts Recycled . | . . . . Recycled Matter . | . . . . Retrieved Matter . | . . . . Retrieved Components 3 | . 3 . . Parts Scanalyzed . | . . . . Part Schematics Acquired . | . . . . Parts Damaged . | . . . . Bothacking | -11 -10 -9 -8 ------------ Run | Yrd Mat Mat Mat Used RIF Installer . | . . . . Robots Hacked . | . . . . Non-combat . | . . . . Combat . | . . . . Robot Hacks Applied . | . . . . Relay Couplers Released . | . . . . Fabnet Peak Effective % . | . . . . Robots Rewired . | . . . . Allies Hacked . | . . . . Hacks Repelled . | . . . . Allies | -11 -10 -9 -8 -------- Run | Yrd Mat Mat Mat Total Allies . | . . . . Largest Group . | . . . . Highest-Rated Group . | . . . . Highest-Rated Ally . | . . . . Total Orders . | . . . . Ally Attacks . | . . . . Total Damage . | . . . . Kills . | . . . . Allies Corrupted . | . . . . Allies Melted . | . . . . Intel | -11 -10 -9 -8 ------- Run | Yrd Mat Mat Mat Robot Analysis Total . | . . . . Derelict Logs Recovered . | . . . . Drone Launches . | . . . . Drone Recoveries . | . . . . Exploration | -11 -10 -9 -8 ------------- Run | Yrd Mat Mat Mat Turns Passed 1875 | 68 604 751 452 Spaces Moved 758 | 59 283 269 147 Core 32 | 21 . . 11 Treads 67 | . . 67 . Legs 659 | 38 283 202 136 Wheels . | . . . . Hover . | . . . . Flight . | . . . . Fastest Speed 50 | 50 120 190 50 Average Speed 177 | 95 169 209 166 Slowest Speed 650 | 120 260 330 650 Overloaded Moves . | . . . . Propulsion Burnouts . | . . . . Robots Hopped . | . . . . Cave-ins Triggered 1 | . . . 1 Exploration Rate (%) 17 | 3 33 23 11 Regions Visited 3 Branch Regions . Pre-discovered Areas . | . . . . Known Exits Taken . | . . . . Unknown Exits Taken 3 | 1 1 1 . Scrap Searched . | . . . . Spaces Dug 1 | . . . 1 Terrain Destroyed 5 | . . . 5 Melee . | . . . . Projectile 2 | . . . 2 AOE 3 | . . . 3 Terrain Rammed . | . . . . Walls Destroyed . | . . . . Machines Disabled . | . . . . Actions | -11 -10 -9 -8 --------- Run | Yrd Mat Mat Mat Total 1077 | 71 367 374 265 Wait 43 | . 30 12 1 Move 755 | 58 282 268 147 Hop . | . . . . Pick Up 66 | 10 21 17 18 Fast Attach . | . . . . Attach 47 | 3 5 13 26 Detach . | . . . . Swap 20 | . . 10 10 Drop 19 | . 7 8 4 Fire 113 | . 22 46 45 Melee 14 | . . . 14 Ram . | . . . . Kick . | . . . . Crush . | . . . . Escape Stasis . | . . . . Rewire . | . . . . Trap . | . . . . Miscellaneous . | . . . . Route ------- -11/Scrapyard -10/Materials -9/Materials -8/Materials History --------- Turn | Location | Event 12 | -11/Scrapyard | Discovered new exit (range 16) 69 | -11/Scrapyard | Entered Materials 309 | -10/Materials | Build established: Mutant 568 | -10/Materials | Discovered new exit (range 16) 626 | -10/Materials | Repaired Ion Engine 673 | -10/Materials | Entered another Materials area 673 | -9/Materials | Evolved 2 slots: Propulsion x1, Utility x1 971 | -9/Materials | System corruption reached 10% 1329 | -9/Materials | Discovered new exit (range 15) 1341 | -9/Materials | Build established: Scavenger-Mutant 1424 | -9/Materials | Entered another Materials area 1424 | -8/Materials | Evolved 2 slots: Utility x1, Weapon x1 1626 | -8/Materials | Core integrity fell below 50% 1649 | -8/Materials | Crushed by falling debris 1658 | -8/Materials | System corruption reached 10% 1671 | -8/Materials | Core integrity fell below 20% 1696 | -8/Materials | Lost 17 parts (1p3n5u8w) 1701 | -8/Materials | System corruption reached 30% 1876 | -8/Materials | Destroyed by G-47 Trooper with Particle Gun Last Messages --------------- >>Access(Emergency) Found 1 emergency access door: (27,29) Map updated. >>Alert(Check) Current Alert Level: Low Security >>Enumerate(Maintenance) Found 24 registered maintenance bots. 13 Workers 4 Builders 3 Tunnelers 4 Recyclers Downloaded coordinate data. ALERT: Suspicious activity at Terminal M003. Dispatching Investigation squad. System corrupted: Component data lost. Imp. Ion Engine destroyed. Hvy. Mace destroyed. Acquired Imp. Targeting Computer. System corrupted: Component data lost. Map ----- +----------------------------------------------------+ | ?????????????????????????? | | ?????????????????????????? | | ?????????????????????????? | | ?????????????????????????? | | ?????????????????????????? | | ?????????????????????????? | | ??????????????? ?????????? | | ??????????????? ????????? | | ??????????#??? #????????? | | ?????????????? ####?????? | | ?????????????? ??????? | | ?????????????? ?? ????? | | ?????????????? ""????? # | | ?????????????? """"??? # | | #########????? """"" #? | | # ###### """"" # | | # """ # """ + | | # """ # #? | | # """ # #? | | # # #? | | # + = "T" #? | | # w # % ! #? | | # gg" # #? | | # T ##### ######## | | # " #???# #??#??#????? | | #@ ##??# #??????????? | | ##### ###???# #???????? ? | | ????####????# #??????????? | | ???########## ###??"?????? | | ??## ##??? ? ? ?? | | ???# ######## #??? ??? ??? | | ???# #???#?##!###????????? | | ???# #?????## #????? ??? | | ???# #???#?## #########? | | ???# #?#????# # #? | | ???# #??????# + #? | | ?###+######## # [ #? | | ?# ## % #########? | | ?# ## ###??????? | | ?# # #???????? | | ?# """ """ # #???????? | | ?# """ """ + "T #?#?????? | | ?# """ """ # ##??????? | | ?# # ???????? | | ?# ## ###??????? | | ?####### #### #??#?????? | | ??????## [# #????????? | | ??????# !%+ #????????? | | ??????# [# #????????? | | ??????# # #????????? | +----------------------------------------------------+ Best States ------------- Heat Dissipation 45 Energy Generation 14 Energy Capacity 465 Matter Stores 321 Matter Capacity 450 Sight Range 16 Terrain Scan Range 14 Terrain Scan Density 10 Armor Coverage 225 Evasion (%) 55 Targeting Accuracy 8 Recoil Reduction 1 Item Schematics ----------------- None Robot Schematics ------------------ None Fabricated ------------ Nothing Alien Tech Used ----------------- None Achievements -------------- None Challenges ------------ None Game ------ Seed RecoilCoolantGravjet Manual? 0 Play Time 00:23:58 Cumulative 2.9 hours Start 2024.04.28 @ 21:33:50 End 2024.04.28 @ 21:55:39 Sessions 1 Manual Loads 0 Difficulty Rogue Special Mode None Game No. 9 Rogue 9 Adventurer 0 Explorer 0 Win Type - Total 0 Types 0/0/0/0/0/0/0/0/0 Lore% 5 Gallery% 10 Achievement% 10 Wizard Run 0 Options --------- Layout 1 ASCII 0 Keyboard 0 Movement Mouse Keybinds 0 Fullscreen 1 Font 24/Smallcaps Map View 50x35 Zoom Use 0% Tactical HUD 0 Map Filters NONE Filters NONE Steam 1 RUN: b5a56bc8-ff2b-4a1e-a843-b9d302187968